fUSD/lending_fUSD_20240223
["ID","MTS","AMOUNT","RATE_DAILY","PERIOD"]
[314987325,1708716642946,-500.0,0.00027671,2]
[314987326,1708716642956,-500.0,0.00027671,2]
[314987327,1708716642966,-500.0,0.00027671,2]
[314987328,1708716642975,-488.7655902,0.00027671,2]
[314987329,1708716642985,-2908.05,0.00027714,2]
[314987330,1708716642995,-189.91261092,0.00027727,2]
[314987331,1708716643005,-155.26,0.00027736,2]
[314987332,1708716643016,-546.83406489,0.00027795,2]
[314987333,1708716643025,-500.0,0.00027808,2]
[314987334,1708716643036,-500.0,0.00027808,2]
[314987335,1708716643045,-500.0,0.00027808,2]
[314987336,1708716643055,-500.0,0.00027808,2]
[314987337,1708716643065,-500.0,0.00027808,2]
[314987338,1708716643074,-500.0,0.00027808,2]
[314987339,1708716643084,-500.0,0.00027808,2]
[314987340,1708716643094,-500.0,0.00027808,2]
[314987341,1708716643104,-500.0,0.00027808,2]
[314987342,1708716643113,-500.0,0.00027808,2]
[314987343,1708716643123,-500.0,0.00027808,2]
[314987344,1708716643133,-500.0,0.00027808,2]
[314987345,1708716643143,-500.0,0.00027808,2]
[314987346,1708716643153,-457.08408768,0.00027808,2]
[314987347,1708716643162,-500.0,0.00027808,2]
[314987348,1708716643175,-500.0,0.00027808,2]
[314987349,1708716643185,-500.0,0.00027808,2]
[314987350,1708716643195,-500.0,0.00027808,2]
[314987351,1708716643204,-500.0,0.00027808,2]
[314987352,1708716643214,-500.0,0.00027808,2]
[314987353,1708716643223,-500.0,0.00027808,2]
[314987354,1708716643237,-500.0,0.00027808,2]
[314987355,1708716643247,-500.0,0.00027808,2]
[314987356,1708716643257,-672.42,0.00027808,2]
[314987357,1708716643266,-500.0,0.00027808,2]
[314987358,1708716643276,-931.36,0.00027808,2]
[314987359,1708716643285,-500.0,0.00027808,2]
[314987360,1708716643295,-500.0,0.00027808,2]
[314987361,1708716643306,-500.0,0.00027808,2]
[314987362,1708716643315,-500.0,0.00027808,2]
[314987363,1708716643325,-500.0,0.00027808,2]
[314987364,1708716643335,-924.78,0.00027808,2]
[314987365,1708716643345,-1249.12,0.00027808,2]
[314987366,1708716643355,-500.0,0.00027808,2]
[314987367,1708716643364,-500.0,0.00027808,2]
[314987368,1708716643373,-500.0,0.00027808,2]
[314987369,1708716643383,-500.0,0.00027808,2]
[314987370,1708716643394,-500.0,0.00027808,2]
[314987371,1708716643403,-500.0,0.00027808,2]
[314987372,1708716643413,-500.0,0.00027808,2]
[314987373,1708716643423,-500.0,0.00027808,2]
[314987374,1708716643433,-500.0,0.00027808,2]
[314987376,1708716643443,-500.0,0.00027808,2]
[314987378,1708716643453,-500.0,0.00027808,2]
[314987380,1708716643462,-500.0,0.00027808,2]
[314987381,1708716643471,-597.21,0.00027808,2]
[314987382,1708716643481,-500.0,0.00027808,2]
[314987383,1708716643491,-154.12,0.00027808,2]
[314987384,1708716643501,-500.0,0.00027808,2]
[314987385,1708716643511,-500.0,0.00027808,2]
[314987386,1708716643520,-500.0,0.00027808,2]
[314987387,1708716643530,-500.0,0.00027808,2]
[314987388,1708716643540,-956.56,0.00027808,2]
[314987390,1708716643550,-500.0,0.00027808,2]
[314987392,1708716643559,-2365.53,0.00027808,2]
[314987393,1708716643569,-1344.39,0.00027808,2]
[314987394,1708716643579,-500.0,0.00027808,2]
[314987395,1708716643589,-500.0,0.00027808,2]
[314987396,1708716643598,-500.0,0.00027808,2]
[314987397,1708716643608,-500.0,0.00027808,2]
[314987398,1708716643618,-1067.67,0.00027808,2]
[314987399,1708716643627,-1433.17,0.00027808,2]
[314987400,1708716643638,-297.3442491,0.00027808,2]
[314987401,1708716643648,-1175.68,0.00027808,2]
[314987402,1708716643657,-500.0,0.00027808,2]
[314987403,1708716643667,-500.0,0.00027808,2]
[314987404,1708716643678,-500.0,0.00027808,2]
[314987405,1708716643687,-500.0,0.00027808,2]
[314987406,1708716643697,-3334.59,0.00027808,2]
[314987407,1708716643706,-500.0,0.00027808,2]
[314987408,1708716643720,-500.0,0.00027808,2]
[314987409,1708716643729,-500.0,0.00027808,2]
[314987410,1708716643739,-1551.36,0.00027808,2]
[314987411,1708716643749,-500.0,0.00027808,2]
[314987412,1708716643758,-2604.11,0.00027808,2]
[314987413,1708716643768,-702.0,0.00027808,2]
[314987414,1708716643777,-3056.12,0.00027808,2]
[314987415,1708716643787,-500.0,0.00027808,2]
[314987416,1708716643796,-500.0,0.00027808,2]
[314987417,1708716643806,-500.0,0.00027808,2]
[314987418,1708716643815,-167.98,0.00027837,2]
[314987419,1708716643825,-2908.05,0.00027872,2]
[314987420,1708716643834,-150.0,0.0002789,7]
[314987421,1708716643844,-150.0,0.0002789,7]
[314987422,1708716643854,-27121.63715841,0.00027894,2]
[314987423,1708716643863,-7764.71211721,0.00027894,2]
[314987424,1708716643873,-202.9,0.00027923,2]
[314987425,1708716643882,-218.76273555,0.00027932,2]
[314987426,1708716643894,-155.26,0.00027943,2]
[314987427,1708716643903,-500.0,0.00027945,2]
[314987428,1708716643913,-500.0,0.00027945,2]
[314987429,1708716643923,-500.0,0.00027945,2]
[314987430,1708716643932,-500.0,0.00027945,2]
[314987431,1708716643942,-500.0,0.00027945,2]
[314987432,1708716643952,-500.0,0.00027945,2]
[314987433,1708716643961,-500.0,0.00027945,2]
[314987434,1708716643971,-500.0,0.00027945,2]
[314987435,1708716643980,-500.0,0.00027945,2]
[314987436,1708716643990,-214.7804473,0.00027945,2]
[314987437,1708716643999,-500.0,0.00027945,2]
[314987438,1708716644009,-500.0,0.00027945,2]
[314987439,1708716644019,-500.0,0.00027945,2]
[314987440,1708716644028,-536.92393329,0.00027945,2]
[314987441,1708716644037,-500.0,0.00027945,2]
[314987442,1708716644047,-509.00420882,0.00027945,2]
[314987443,1708716644057,-500.0,0.00027945,2]
[314987444,1708716644067,-500.0,0.00027945,2]
[314987445,1708716644076,-500.0,0.00027945,2]
[314987446,1708716644085,-500.0,0.00027945,2]
[314987447,1708716644095,-500.0,0.00027945,2]
[314987448,1708716644104,-672.42,0.00027945,2]
[314987449,1708716644114,-500.0,0.00027945,2]
[314987450,1708716644124,-931.36,0.00027945,2]
[314987451,1708716644133,-500.0,0.00027945,2]
[314987452,1708716644143,-500.0,0.00027945,2]
[314987453,1708716644153,-500.0,0.00027945,2]
[314987454,1708716644163,-500.0,0.00027945,2]
[314987455,1708716644172,-500.0,0.00027945,2]
[314987456,1708716644182,-924.78,0.00027945,2]
[314987457,1708716644192,-1249.12,0.00027945,2]
[314987458,1708716644202,-500.0,0.00027945,2]
[314987459,1708716644212,-500.0,0.00027945,2]
[314987460,1708716644221,-202.42587135,0.00027945,2]
[314987461,1708716644234,-500.0,0.00027945,2]
[314987462,1708716644244,-500.0,0.00027945,2]
[314987463,1708716644253,-500.0,0.00027945,2]
[314987464,1708716644263,-500.0,0.00027945,2]
[314987465,1708716644273,-500.0,0.00027945,2]
[314987466,1708716644282,-500.0,0.00027945,2]
[314987467,1708716644293,-500.0,0.00027945,2]
[314987468,1708716644302,-500.0,0.00027945,2]
[314987469,1708716644313,-597.21,0.00027945,2]
[314987470,1708716644324,-500.0,0.00027945,2]
[314987471,1708716644334,-500.0,0.00027945,2]
[314987472,1708716644344,-555.28595063,0.00027945,2]
[314987473,1708716644354,-500.0,0.00027945,2]
[314987474,1708716644363,-500.0,0.00027945,2]
[314987475,1708716644373,-956.56,0.00027945,2]
[314987476,1708716644383,-500.0,0.00027945,2]
[314987477,1708716644393,-2365.53,0.00027945,2]
[314987478,1708716644402,-1344.39,0.00027945,2]
[314987479,1708716644412,-500.0,0.00027945,2]
[314987480,1708716644421,-500.0,0.00027945,2]
[314987481,1708716644431,-500.0,0.00027945,2]
[314987482,1708716644441,-500.0,0.00027945,2]
[314987483,1708716644450,-1067.67,0.00027945,2]
[314987484,1708716644459,-1433.17,0.00027945,2]
[314987485,1708716644469,-1175.68,0.00027945,2]
[314987486,1708716644479,-500.0,0.00027945,2]
[314987487,1708716644489,-500.0,0.00027945,2]
[314987488,1708716644499,-500.0,0.00027945,2]
[314987489,1708716644508,-500.0,0.00027945,2]
[314987490,1708716644518,-3334.59,0.00027945,2]
[314987491,1708716644528,-500.0,0.00027945,2]
[314987492,1708716644537,-500.0,0.00027945,2]
[314987493,1708716644547,-500.0,0.00027945,2]
[314987494,1708716644556,-1551.36,0.00027945,2]
[314987495,1708716644566,-500.0,0.00027945,2]
[314987496,1708716644576,-2604.11,0.00027945,2]
[314987497,1708716644586,-702.0,0.00027945,2]
[314987498,1708716644596,-3056.12,0.00027945,2]
[314987499,1708716644606,-500.0,0.00027945,2]
[314987500,1708716644616,-500.0,0.00027945,2]
[314987501,1708716644626,-500.0,0.00027945,2]
[314987502,1708716644637,-160.49481861,0.00028001,2]
[314987503,1708716644647,-159.39088986,0.0002801,2]
[314987504,1708716644657,-520.18855665,0.00028026,2]
[314987505,1708716644667,-2908.05,0.0002803,2]
[314987506,1708716644678,-556.52448832,0.00028032,2]
[314987507,1708716644688,-13652.9510242,0.00028032,2]
[314987508,1708716644698,-1394.55708933,0.00028032,2]
[314987509,1708716644709,-1073.43369037,0.00028032,2]
[314987510,1708716644719,-159.39088986,0.00028035,2]
[314987511,1708716644729,-500.0,0.00028082,2]
[314987512,1708716644739,-500.0,0.00028082,2]
[314987513,1708716644750,-500.0,0.00028082,2]
[314987514,1708716644760,-387.94124205,0.00028082,2]
[314987515,1708716644770,-500.0,0.00028082,2]
[314987516,1708716644780,-500.0,0.00028082,2]
[314987517,1708716644791,-500.0,0.00028082,2]
[314987518,1708716644802,-500.0,0.00028082,2]
[314987519,1708716644812,-500.0,0.00028082,2]
[314987520,1708716644822,-500.0,0.00028082,2]
[314987521,1708716644845,-500.0,0.00028082,2]
[314987522,1708716644856,-500.0,0.00028082,2]
[314987523,1708716644866,-500.0,0.00028082,2]
[314987524,1708716644877,-500.0,0.00028082,2]
[314987525,1708716644889,-500.0,0.00028082,2]
[314987526,1708716644899,-500.0,0.00028082,2]
[314987527,1708716644910,-500.0,0.00028082,2]
[314987528,1708716644920,-672.42,0.00028082,2]
[314987529,1708716644930,-500.0,0.00028082,2]
[314987530,1708716644940,-931.36,0.00028082,2]
[314987531,1708716644950,-500.0,0.00028082,2]
[314987532,1708716644961,-500.0,0.00028082,2]
[314987533,1708716644970,-500.0,0.00028082,2]
[314987534,1708716644980,-500.0,0.00028082,2]
[314987535,1708716644990,-500.0,0.00028082,2]
[314987536,1708716645001,-924.78,0.00028082,2]
[314987537,1708716645011,-500.0,0.00028082,2]
[314987538,1708716645022,-1249.12,0.00028082,2]
[314987539,1708716645031,-500.0,0.00028082,2]
[314987540,1708716645042,-500.0,0.00028082,2]
[314987541,1708716645051,-500.0,0.00028082,2]
[314987542,1708716645061,-500.0,0.00028082,2]
[314987543,1708716645070,-500.0,0.00028082,2]
[314987544,1708716645080,-500.0,0.00028082,2]
[314987545,1708716645090,-597.21,0.00028082,2]
[314987546,1708716645100,-500.0,0.00028082,2]
[314987547,1708716645110,-560.91,0.00028082,2]
[314987548,1708716645120,-500.0,0.00028082,2]
[314987549,1708716645130,-500.0,0.00028082,2]
[314987550,1708716645141,-956.56,0.00028082,2]
[314987551,1708716645151,-500.0,0.00028082,2]
[314987552,1708716645162,-2365.53,0.00028082,2]
[314987553,1708716645171,-1344.39,0.00028082,2]
[314987554,1708716645182,-500.0,0.00028082,2]
[314987555,1708716645192,-500.0,0.00028082,2]
[314987556,1708716645201,-500.0,0.00028082,2]
[314987557,1708716645212,-500.0,0.00028082,2]
[314987558,1708716645222,-1067.67,0.00028082,2]
[314987559,1708716645235,-1433.17,0.00028082,2]
[314987560,1708716645245,-1175.68,0.00028082,2]
[314987561,1708716645255,-500.0,0.00028082,2]
[314987562,1708716645266,-500.0,0.00028082,2]
[314987563,1708716645276,-500.0,0.00028082,2]
[314987564,1708716645286,-3334.59,0.00028082,2]
[314987565,1708716645297,-500.0,0.00028082,2]
[314987566,1708716645307,-500.0,0.00028082,2]
[314987567,1708716645319,-500.0,0.00028082,2]
[314987568,1708716645339,-1551.36,0.00028082,2]
[314987569,1708716645352,-500.0,0.00028082,2]
[314987570,1708716645363,-2604.11,0.00028082,2]
[314987571,1708716645374,-702.0,0.00028082,2]
[314987572,1708716645385,-3056.12,0.00028082,2]
[314987573,1708716645395,-500.0,0.00028082,2]
[314987574,1708716645407,-500.0,0.00028082,2]
[314987575,1708716645418,-500.0,0.00028082,2]
[314987576,1708716645428,-160.49481861,0.0002809,2]
[314987577,1708716645439,-546.83406489,0.00028119,2]
[314987578,1708716645450,-1575.50708759,0.00028122,2]
[314987579,1708716645461,-265.64558969,0.00028123,2]
[314987580,1708716645471,-337.53725946,0.0002813,2]
[314987581,1708716645482,-1826768.34162069,0.00028132,4]
[314987582,1708716645493,-28580.82,0.00028132,2]
[314987583,1708716645504,-28580.82,0.00028132,2]
[314987584,1708716645514,-28580.82,0.00028132,2]
[314987585,1708716645525,-28580.82,0.00028132,2]
[314987586,1708716645536,-28580.82,0.00028132,2]
[314987587,1708716645546,-28580.82,0.00028132,2]
[314987588,1708716645556,-28580.82,0.00028132,2]
[314987589,1708716645567,-28580.82,0.00028132,2]
[314987590,1708716645577,-28580.82,0.00028132,2]
[314987591,1708716645587,-28580.82,0.00028132,2]
[314987592,1708716645598,-28580.82,0.00028132,2]
[314987593,1708716645608,-28580.82,0.00028132,2]
[314987594,1708716645619,-28580.82,0.00028132,2]
[314987595,1708716645630,-28580.82,0.00028132,2]
[314987596,1708716645641,-28580.82,0.00028132,2]
[314987597,1708716645652,-28580.85774043,0.00028132,2]
[314987598,1708716645662,-150.0,0.00028137,7]
[314987599,1708716645673,-150.0,0.00028137,7]
[314987600,1708716645683,-155.26,0.0002815,2]
[314987601,1708716645693,-337.53725946,0.00028181,2]
[314987602,1708716645703,-265.64558969,0.00028185,2]
[314987603,1708716645713,-168.75267509,0.00028186,2]
[314987604,1708716645724,-2908.05,0.00028189,2]
[314987605,1708716645734,-154.02083881,0.00028204,2]
[314987606,1708716645745,-500.0,0.00028219,2]
[314987607,1708716645756,-500.0,0.00028219,2]
[314987608,1708716645766,-500.0,0.00028219,2]
[314987609,1708716645777,-500.0,0.00028219,2]
[314987610,1708716645787,-500.0,0.00028219,2]
[314987611,1708716645797,-500.0,0.00028219,2]
[314987612,1708716645807,-500.0,0.00028219,2]
[314987613,1708716645818,-500.0,0.00028219,2]
[314987614,1708716645828,-500.0,0.00028219,2]
[314987615,1708716645838,-644.47390828,0.00028219,2]
[314987616,1708716645848,-500.0,0.00028219,2]
[314987617,1708716645858,-500.0,0.00028219,2]
[314987619,1708716645869,-500.0,0.00028219,2]
[314987621,1708716645879,-542.42,0.00028219,2]
[314987623,1708716645890,-500.0,0.00028219,2]
[314987624,1708716645900,-500.0,0.00028219,2]
[314987625,1708716645911,-672.42,0.00028219,2]
[314987626,1708716645922,-481.25926501,0.00028219,2]
[314987627,1708716645932,-931.36,0.00028219,2]
[314987628,1708716645942,-500.0,0.00028219,2]
[314987630,1708716645952,-176.5,0.00028219,2]
[314987632,1708716645963,-500.0,0.00028219,2]
[314987633,1708716645973,-500.0,0.00028219,2]
[314987634,1708716645983,-572.91,0.00028219,2]
[314987635,1708716645993,-924.78,0.00028219,2]
[314987636,1708716646004,-500.0,0.00028219,2]
[314987637,1708716646014,-1249.12,0.00028219,2]
[314987639,1708716646024,-500.0,0.00028219,2]
[314987641,1708716646034,-304.05699459,0.00028219,2]
[314987643,1708716646043,-500.0,0.00028219,2]
[314987645,1708716646054,-500.0,0.00028219,2]
[314987646,1708716646063,-319.67,0.00028219,2]
[314987649,1708716646073,-597.21,0.00028219,2]
[314987651,1708716646083,-500.0,0.00028219,2]
[314987652,1708716646093,-500.0,0.00028219,2]
[314987654,1708716646103,-500.0,0.00028219,2]
[314987655,1708716646113,-956.56,0.00028219,2]
[314987657,1708716646123,-500.0,0.00028219,2]
[314987658,1708716646134,-2365.53,0.00028219,2]
[314987660,1708716646145,-1344.39,0.00028219,2]
[314987661,1708716646154,-500.0,0.00028219,2]
[314987663,1708716646164,-500.0,0.00028219,2]
[314987664,1708716646174,-500.0,0.00028219,2]
[314987666,1708716646184,-1067.67,0.00028219,2]
[314987667,1708716646194,-1433.17,0.00028219,2]
[314987669,1708716646203,-1175.68,0.00028219,2]
[314987670,1708716646213,-500.0,0.00028219,2]
[314987672,1708716646224,-500.0,0.00028219,2]
[314987673,1708716646238,-583.13344368,0.00028219,2]
[314987674,1708716646248,-3334.59,0.00028219,2]
[314987675,1708716646258,-500.0,0.00028219,2]
[314987676,1708716646268,-516.55,0.00028219,2]
[314987677,1708716646279,-500.0,0.00028219,2]
[314987678,1708716646289,-1551.36,0.00028219,2]
[314987679,1708716646299,-629.91033467,0.00028219,2]
[314987680,1708716646311,-2604.11,0.00028219,2]
[314987681,1708716646322,-702.0,0.00028219,2]
[314987682,1708716646332,-3056.12,0.00028219,2]
[314987683,1708716646342,-500.0,0.00028219,2]
[314987684,1708716646353,-500.0,0.00028219,2]
[314987685,1708716646362,-500.0,0.00028219,2]
[314987686,1708716646372,-2908.05,0.00028347,2]
[314987687,1708716646382,-3473.32798643,0.00028347,2]
[314987688,1708716646392,-500.0,0.00028356,2]
[314987689,1708716646402,-604.636872,0.00028356,2]
[314987690,1708716646412,-500.0,0.00028356,2]
[314987691,1708716646421,-500.0,0.00028356,2]
[314987692,1708716646431,-500.0,0.00028356,2]
[314987693,1708716646441,-500.0,0.00028356,2]
[314987694,1708716646451,-500.0,0.00028356,2]
[314987695,1708716646461,-500.0,0.00028356,2]
[314987696,1708716646471,-500.0,0.00028356,2]
[314987697,1708716646480,-500.0,0.00028356,2]
[314987699,1708716646490,-500.0,0.00028356,2]
[314987701,1708716646500,-500.0,0.00028356,2]
[314987702,1708716646510,-500.0,0.00028356,2]
[314987703,1708716646520,-672.42,0.00028356,2]
[314987704,1708716646529,-931.36,0.00028356,2]
[314987705,1708716646539,-500.0,0.00028356,2]
[314987707,1708716646550,-500.0,0.00028356,2]
[314987708,1708716646560,-500.0,0.00028356,2]
[314987710,1708716646570,-924.78,0.00028356,2]
[314987712,1708716646580,-500.0,0.00028356,2]
[314987715,1708716646590,-1249.12,0.00028356,2]
[314987716,1708716646599,-482.14,0.00028356,2]
[314987717,1708716646609,-500.0,0.00028356,2]
[314987718,1708716646619,-500.0,0.00028356,2]
[314987719,1708716646629,-597.21,0.00028356,2]
[314987720,1708716646639,-500.0,0.00028356,2]
[314987721,1708716646649,-500.0,0.00028356,2]
[314987722,1708716646660,-235.82368125,0.00028356,2]
[314987723,1708716646670,-956.56,0.00028356,2]
[314987724,1708716646679,-2365.53,0.00028356,2]
[314987725,1708716646689,-1344.39,0.00028356,2]
[314987726,1708716646699,-500.0,0.00028356,2]
[314987727,1708716646709,-500.0,0.00028356,2]
[314987728,1708716646719,-500.0,0.00028356,2]
[314987729,1708716646729,-1433.17,0.00028356,2]
[314987730,1708716646739,-1067.67,0.00028356,2]
[314987731,1708716646750,-1175.68,0.00028356,2]
[314987732,1708716646789,-500.0,0.00028356,2]
[314987733,1708716646799,-500.0,0.00028356,2]
[314987734,1708716646810,-3334.59,0.00028356,2]
[314987735,1708716646820,-500.0,0.00028356,2]
[314987736,1708716646830,-500.0,0.00028356,2]
[314987737,1708716646840,-1551.36,0.00028356,2]
[314987738,1708716646850,-2604.11,0.00028356,2]
[314987739,1708716646861,-702.0,0.00028356,2]
[314987740,1708716646871,-3056.12,0.00028356,2]
[314987741,1708716646881,-500.0,0.00028356,2]
[314987742,1708716646893,-500.0,0.00028356,2]
[314987743,1708716646903,-155.26,0.00028357,2]
[314987744,1708716646915,-150.0,0.00028383,7]
[314987745,1708716647194,-12415.0,0.000284,2]
[314987746,1708716647205,-444.32,0.000284,2]
[314987747,1708716647215,-167.02514081,0.00028429,2]
[314987748,1708716647224,-5929.9481023,0.00028429,2]
[314987749,1708716647240,-156.30526137,0.00028446,2]
[314987750,1708716647250,-154.02083881,0.00028484,2]
[314987751,1708716647260,-500.0,0.00028493,2]
[314987752,1708716647269,-500.0,0.00028493,2]
[314987753,1708716647279,-500.0,0.00028493,2]
[314987754,1708716647288,-273.87,0.00028493,2]
[314987755,1708716647298,-249.66,0.00028493,2]
[314987756,1708716647307,-500.0,0.00028493,2]
[314987757,1708716647317,-213.25,0.00028493,2]
[314987758,1708716647327,-500.0,0.00028493,2]
[314987759,1708716647336,-500.0,0.00028493,2]
[314987760,1708716647346,-500.0,0.00028493,2]
[314987761,1708716647356,-500.0,0.00028493,2]
[314987762,1708716647365,-672.42,0.00028493,2]
[314987763,1708716647379,-931.36,0.00028493,2]
[314987764,1708716647389,-290.62027065,0.00028493,2]
[314987765,1708716647402,-500.0,0.00028493,2]
[314987766,1708716647412,-500.0,0.00028493,2]
[314987767,1708716647422,-924.78,0.00028493,2]
[314987768,1708716647432,-500.0,0.00028493,2]
[314987769,1708716647442,-1249.12,0.00028493,2]
[314987770,1708716647453,-500.0,0.00028493,2]
[314987771,1708716647464,-500.0,0.00028493,2]
[314987772,1708716647474,-597.21,0.00028493,2]
[314987773,1708716647484,-500.0,0.00028493,2]
[314987774,1708716647494,-500.0,0.00028493,2]
[314987775,1708716647503,-956.56,0.00028493,2]
[314987776,1708716647513,-2365.53,0.00028493,2]
[314987777,1708716647523,-1344.39,0.00028493,2]
[314987778,1708716647533,-500.0,0.00028493,2]
[314987779,1708716647542,-500.0,0.00028493,2]
[314987780,1708716647553,-500.0,0.00028493,2]
[314987781,1708716647562,-1433.17,0.00028493,2]
[314987782,1708716647572,-1067.67,0.00028493,2]
[314987783,1708716647582,-1175.68,0.00028493,2]
[314987784,1708716647592,-170.34,0.00028493,2]
[314987785,1708716647601,-500.0,0.00028493,2]
[314987786,1708716647611,-3334.59,0.00028493,2]
[314987787,1708716647621,-253.884495,0.00028493,2]
[314987788,1708716647631,-500.0,0.00028493,2]
[314987789,1708716647641,-1551.36,0.00028493,2]
[314987790,1708716647651,-2604.11,0.00028493,2]
[314987791,1708716647661,-702.0,0.00028493,2]
[314987792,1708716647671,-3056.12,0.00028493,2]
[314987793,1708716647681,-554.64,0.00028493,2]
[314987794,1708716647690,-500.0,0.00028493,2]
[314987795,1708716647700,-2908.05,0.00028505,2]
[314987796,1708716647709,-194.88,0.00028508,2]
[314987797,1708716647718,-155.26,0.00028564,2]
[314987798,1708716647729,-156.30526137,0.00028565,2]
[314987799,1708716647739,-189.91261092,0.00028569,2]
[314987800,1708716647749,-224.72078485,0.00028573,2]
[314987801,1708716647758,-800.0,0.00028609,2]
[314987802,1708716647769,-520.18855665,0.00028619,2]
[314987803,1708716647778,-500.0,0.0002863,2]
[314987804,1708716647789,-500.0,0.0002863,2]
[314987805,1708716647799,-500.0,0.0002863,2]
[314987806,1708716647809,-500.0,0.0002863,2]
[314987807,1708716647820,-500.0,0.0002863,2]
[314987808,1708716647830,-212.13,0.0002863,2]
[314987809,1708716647840,-500.0,0.0002863,2]
[314987810,1708716647850,-500.0,0.0002863,2]
[314987811,1708716647860,-672.42,0.0002863,2]
[314987812,1708716647871,-931.36,0.0002863,2]
[314987813,1708716647881,-500.0,0.0002863,2]
[314987814,1708716647894,-500.0,0.0002863,2]
[314987815,1708716647906,-924.78,0.0002863,2]
[314987816,1708716647916,-500.0,0.0002863,2]
[314987817,1708716647927,-1249.12,0.0002863,2]
[314987818,1708716647937,-500.0,0.0002863,2]
[314987819,1708716647947,-500.0,0.0002863,2]
[314987820,1708716647958,-597.21,0.0002863,2]
[314987821,1708716647968,-500.0,0.0002863,2]
[314987822,1708716647978,-500.0,0.0002863,2]
[314987823,1708716647988,-956.56,0.0002863,2]
[314987824,1708716647998,-2365.53,0.0002863,2]
[314987825,1708716648008,-1344.39,0.0002863,2]
[314987826,1708716648018,-500.0,0.0002863,2]
[314987827,1708716648028,-500.0,0.0002863,2]
[314987828,1708716648038,-373.34030771,0.0002863,2]
[314987829,1708716648048,-1433.17,0.0002863,2]
[314987830,1708716648058,-1067.67,0.0002863,2]
[314987831,1708716648068,-1175.68,0.0002863,2]
[314987832,1708716648078,-500.0,0.0002863,2]
[314987833,1708716648089,-3334.59,0.0002863,2]
[314987834,1708716648098,-500.0,0.0002863,2]
[314987835,1708716648108,-1551.36,0.0002863,2]
[314987836,1708716648117,-2604.11,0.0002863,2]
[314987837,1708716648127,-702.0,0.0002863,2]
[314987838,1708716648136,-3056.12,0.0002863,2]
[314987839,1708716648149,-500.0,0.0002863,2]
[314987840,1708716648158,-156.30526137,0.00028659,2]
[314987841,1708716648168,-2908.05,0.00028664,2]
[314987842,1708716648177,-156.30526137,0.00028678,2]
[314987843,1708716648187,-265.64558969,0.00028686,2]
[314987844,1708716648197,-4970.94547961,0.00028752,2]
[314987845,1708716648206,-500.0,0.00028767,2]
[314987846,1708716648216,-318.33,0.00028767,2]
[314987847,1708716648226,-500.0,0.00028767,2]
[314987848,1708716648239,-500.0,0.00028767,2]
[314987849,1708716648248,-586.08855096,0.00028767,2]
[314987850,1708716648258,-500.0,0.00028767,2]
[314987851,1708716648267,-500.0,0.00028767,2]
[314987852,1708716648277,-672.42,0.00028767,2]
[314987853,1708716648287,-931.36,0.00028767,2]
[314987854,1708716648296,-500.0,0.00028767,2]
[314987855,1708716648306,-924.78,0.00028767,2]